Workbook

Sheet Feuil1
A6: الرقم | B6: تاريخ العملية | C6: اسم المنتوج | D6: الكمية | E6: سعر البيع | F6: خصم | G6: المجموع
A7: =IF(C7<>0,1,"") -> 1 | B7: =IF(C7<>0,TODAY(),"") -> 2022-03-27 | C7: فيلتر 1000 ل | D7: 1 | E7: =IF(C7<>0,(VLOOKUP(C7,[1]Feuil2!$B$3:$E$271,4,0)),"") -> 1300 | F7: 100 | G7: =IF(C7<>0,((E7*D7)-F7),"") -> 1200
A8: =IF(C8<>0,A7+1,"") -> 2 | B8: 2022-03-27 | C8: فايتر 1 | D8: 1 | E8: =IF(C8<>0,(VLOOKUP(C8,[1]Feuil2!$B$3:$E$271,4,0)),"") -> 600 | G8: 600
A9: 3 | B9: 2022-03-27 | C9: فايتر 3 | D9: 1 | E9: =IF(C9<>0,(VLOOKUP(C9,[1]Feuil2!$B$3:$E$271,4,0)),"") -> 350 | G9: 350
A10: 4 | B10: 2022-03-27 | C10: سخان 100w | D10: 1 | E10: =IF(C10<>0,(VLOOKUP(C10,[1]Feuil2!$B$3:$E$271,4,0)),"") -> 850 | F10: 50 | G10: 800
A11: 5 | B11: 2022-03-27 | C11: فيلتر صغير | D11: 1 | E11: =IF(C11<>0,(VLOOKUP(C11,[1]Feuil2!$B$3:$E$271,4,0)),"") -> 750 | F11: 50 | G11: 700
A12: 6 | B12: 2022-03-27 | C12: سخان ماء | D12: 1 | E12: =IF(C12<>0,(VLOOKUP(C12,[1]Feuil2!$B$3:$E$271,4,0)),"") -> 250 | F12: 50 | G12: 200
A13: 7 | B13: 2022-03-27 | C13: ديفيزور | D13: 2 | E13: =IF(C13<>0,(VLOOKUP(C13,[1]Feuil2!$B$3:$E$271,4,0)),"") -> 30 | G13: 60
A14: 8 | B14: 2022-03-27 | C14: بوقال 2 | D14: 1 | E14: =IF(C14<>0,(VLOOKUP(C14,[1]Feuil2!$B$3:$E$271,4,0)),"") -> 1450 | F14: 50 | G14: 1400
A15: 9 | B15: 2022-03-27 | C15: فايتر 1 | D15: 1 | E15: =IF(C15<>0,(VLOOKUP(C15,[1]Feuil2!$B$3:$E$271,4,0)),"") -> 600 | G15: 600
A16: 10 | B16: 2022-03-27 | C16: اكل اسماك كبيرة | D16: 1 | E16: =IF(C16<>0,(VLOOKUP(C16,[1]Feuil2!$B$3:$E$271,4,0)),"") -> 150 | F16: 50 | G16: 100
A17: 11 | B17: 2022-03-27 | C17: اعشاب اصطناعية ك | D17: 2 | E17: =IF(C17<>0,(VLOOKUP(C17,[1]Feuil2!$B$3:$E$271,4,0)),"") -> 150 | G17: 300
A18: 12 | B18: 2022-03-27 | C18: كيم برايقة | D18: 1 | E18: =IF(C18<>0,(VLOOKUP(C18,[1]Feuil2!$B$3:$E$271,4,0)),"") -> 200 | G18: 200
A19: 13 | B19: 2022-03-27 | C19: صابل حجارة رفيعة | D19: 1 | E19: =IF(C19<>0,VLOOKUP(C19,[1]Feuil2!$B$3:$E$271,4,0),"") -> 250 | F19: 50 | G19: 200
E20: =IF(C27<>0,VLOOKUP(C20,[1]Feuil2!$B$3:$E$271,4,0),"") -> 
E21: =IF(C28<>0,VLOOKUP(C21,[1]Feuil2!$B$3:$E$271,4,0),"") -> 
E22: =IF(C29<>0,VLOOKUP(C22,[1]Feuil2!$B$3:$E$271,4,0),"") -> 
E23: =IF(C30<>0,VLOOKUP(C23,[1]Feuil2!$B$3:$E$271,4,0),"") -> 
E24: =IF(C31<>0,VLOOKUP(C24,[1]Feuil2!$B$3:$E$271,4,0),"") -> 
E25: =IF(C32<>0,VLOOKUP(C25,[1]Feuil2!$B$3:$E$271,4,0),"") -> 
E26: =IF(C33<>0,VLOOKUP(C26,[1]Feuil2!$B$3:$E$271,4,0),"") -> 
E27: =IF(C34<>0,VLOOKUP(C27,[1]Feuil2!$B$3:$E$271,4,0),"") -> 
E28: =IF(C35<>0,VLOOKUP(C28,[1]Feuil2!$B$3:$E$271,4,0),"") -> 
E29: =IF(C36<>0,VLOOKUP(C29,[1]Feuil2!$B$3:$E$271,4,0),"") -> 
E30: =IF(C37<>0,VLOOKUP(C30,[1]Feuil2!$B$3:$E$271,4,0),"") -> 
E31: =IF(C38<>0,VLOOKUP(C31,[1]Feuil2!$B$3:$E$271,4,0),"") -> 
E32: =IF(C39<>0,VLOOKUP(C32,[1]Feuil2!$B$3:$E$271,4,0),"") -> 
E33: =IF(C40<>0,VLOOKUP(C33,[1]Feuil2!$B$3:$E$271,4,0),"") -> 
E34: =IF(C41<>0,VLOOKUP(C34,[1]Feuil2!$B$3:$E$271,4,0),"") -> 
E35: =IF(C42<>0,VLOOKUP(C35,[1]Feuil2!$B$3:$E$271,4,0),"") -> 
E36: =SUM(E7:E35) -> 6930 | F36: =SUM(F7:F35) -> 400 | G36: =SUM(G7:G35) -> 6710

Sheet Feuil2
A6: الرقم | B6: تاريخ العملية | C6: اسم المنتوج | D6: الكمية | E6: سعر البيع | F6: خصم | G6: المجموع
A7: =IF(C7<>0,1,"") -> 
A8: =IF(C8<>0,A7+1,"") -> 
B20: =IF(C20<>0,TODAY(),"") ->  | E20: =IF(C27<>0,VLOOKUP(C20,[1]Feuil2!$B$3:$E$271,4,0),"") ->  | G20: =IF(C20<>0,((E20*D20)-F20),"") -> 
E21: =IF(C28<>0,VLOOKUP(C21,[1]Feuil2!$B$3:$E$271,4,0),"") -> 
E22: =IF(C29<>0,VLOOKUP(C22,[1]Feuil2!$B$3:$E$271,4,0),"") -> 
E23: =IF(C30<>0,VLOOKUP(C23,[1]Feuil2!$B$3:$E$271,4,0),"") -> 
E24: =IF(C31<>0,VLOOKUP(C24,[1]Feuil2!$B$3:$E$271,4,0),"") -> 
E25: =IF(C32<>0,VLOOKUP(C25,[1]Feuil2!$B$3:$E$271,4,0),"") -> 
E26: =IF(C33<>0,VLOOKUP(C26,[1]Feuil2!$B$3:$E$271,4,0),"") -> 
E27: =IF(C34<>0,VLOOKUP(C27,[1]Feuil2!$B$3:$E$271,4,0),"") -> 
E28: =IF(C35<>0,VLOOKUP(C28,[1]Feuil2!$B$3:$E$271,4,0),"") -> 
E29: =IF(C36<>0,VLOOKUP(C29,[1]Feuil2!$B$3:$E$271,4,0),"") -> 
E30: =IF(C37<>0,VLOOKUP(C30,[1]Feuil2!$B$3:$E$271,4,0),"") -> 
E31: =IF(C38<>0,VLOOKUP(C31,[1]Feuil2!$B$3:$E$271,4,0),"") -> 
E32: =IF(C39<>0,VLOOKUP(C32,[1]Feuil2!$B$3:$E$271,4,0),"") -> 
E33: =IF(C40<>0,VLOOKUP(C33,[1]Feuil2!$B$3:$E$271,4,0),"") -> 
E34: =IF(C41<>0,VLOOKUP(C34,[1]Feuil2!$B$3:$E$271,4,0),"") -> 
E35: =IF(C42<>0,VLOOKUP(C35,[1]Feuil2!$B$3:$E$271,4,0),"") -> 
E36: =SUM(E7:E35) -> 0 | F36: =SUM(F7:F35) -> 0 | G36: =SUM(G7:G35) -> 0
